Cogmind - Beta 10.2 @@@ ROGUE MODE // 2021.10.30 @ 17:51:33 // Winter2019/RPGLIKE Player: Kom Result: Destroyed by G-34 Mercenary with Small Laser Performance ------------- Evolutions (0) 0 Regions Visited (1) 200 Robots Destroyed (7) 35 Value Destroyed (94) 94 Prototype IDs (2) 40 Alien Tech Used (0) 0 Bonus (0) 0 TOTAL SCORE: 369 Bonus ------- None Cogmind --------- Core Integrity 0/600 Matter 238/300 Energy 125/125 System Corruption 2% Temperature Cool (17) Movement Flying (40) Location -10/Materials Parts ------- > --- POWER (1) -------- Light Ion Engine > --- PROPULSION (2) --- Flight Unit > --- UTILITY (2) ------ (None) > --- WEAPON (3) ------- Light Assault Rifle Light Assault Rifle Grenade Launcher > --- INVENTORY (1) ---- Flight Unit Peak State ------------ > --- POWER ------------ Light Ion Engine > --- PROPULSION ------- Aluminum Leg Aluminum Leg > --- UTILITY ---------- (None) > --- WEAPON ----------- EM Pulse Gun Light Assault Rifle Light Assault Rifle > --- INVENTORY -------- (None) [Rating: 6] Favorites ----------- Power Light Ion Engine Engine Light Ion Engine Propulsion Aluminum Leg Leg Aluminum Leg Flight Unit Flight Unit Utility None Weapon Light Assault Rifle Energy Gun EM Pulse Gun Ballistic Gun Light Assault Rifle Launcher Grenade Launcher Build | -11 -10 ------- Run | Scr Mat Slots Evolved 4 | 4 . Power . | . . Propulsion 1 | 1 . Utility 1 | 1 . Weapon 2 | 2 . Parts Attached 10 | 6 4 Power 1 | 1 . Engine 1 | 1 . Core . | . . Reactor . | . . Propulsion 5 | 2 3 Treads . | . . Leg 2 | 2 . Wheel . | . . Hover . | . . Flight 3 | . 3 Utility . | . . Device . | . . Storage . | . . Processor . | . . Hackware . | . . Protection . | . . Artifact . | . . Weapon 4 | 3 1 Energy Gun 1 | 1 . Energy Cannon . | . . Ballistic Gun 2 | 2 . Ballistic Cannon . | . . Launcher 1 | . 1 Special Weapon . | . . Impact Weapon . | . . Slashing Weapon . | . . Piercing Weapon . | . . Special Melee Weapon . | . . Unidentified Prototypes . | . . Parts Lost 1 | . 1 Power . | . . Propulsion 1 | . 1 Utility . | . . Weapon . | . . Highest Loss Streak 1 | . 1 Average Slot Usage (%) 73 | . 73 Engine 12 | . 12 Leg 10 | . 10 Flight 13 | . 13 Energy Gun 6 | . 6 Ballistic Gun 25 | . 25 Launcher 5 | . 5 Naked Turns . | . . Heaviest Build 8 | 7 8 Greatest Support 25 | 25 25 Greatest Overweight (x) . | . . Average Overweight (x) . | . . Largest Inventory Capacity 1 | 1 1 Average Capacity 1 | 1 1 Most Carried 1 | 1 1 Average Carried . | . . Final Capacity 1 | 1 1 Final Carried 1 | . 1 Class Distribution -------------------- 58% | Gunner 41% | Mutant Dominant Class ---------------- Mutant | -10/Materials Resources | -11 -10 ----------- Run | Scr Mat Matter Collected 279 | 264 15 Remotely . | . . Salvage Created 47 | . 47 Parts 11 | . 11 Haulers Intercepted . | . . Recyclers Shooed . | . . Parts Field Recycled . | . . Retrieved Matter . | . . Parts Self-Destructed . | . . Prevented . | . . Kills | -11 -10 ------- Run | Scr Mat Combat Hostiles Destroyed 7 | . 7 Guns 1 | . 1 AOE 6 | . 6 Classes Destroyed 2 | . 2 Swarmer 6 | . 6 Grunt 1 | . 1 Best Kill Streak 4 | . 4 Combat Bots Only 4 | . 4 Max Kills in Single Turn 3 | . 3 Gunslinging . | . . Exploded 3 | . 3 Melee . | . . Uniques/NPCs Destroyed . | . . Combat | -11 -10 -------- Run | Scr Mat Damage Taken 740 | . 740 Core 600 | . 600 Absorbed by Shields . | . . Redirected to Core 498 | . 498 Core Remaining (%) 100 | 100 . Volleys Fired 17 | 4 13 Largest 3 | 1 3 Hottest 80 | 20 80 Shots Fired 31 | 4 27 Gun 29 | 4 25 Cannon . | . . Launcher 2 | . 2 Special . | . . Kinetic 26 | 4 22 Thermal . | . . Explosive 2 | . 2 Electromagnetic 3 | . 3 Robot Hit Streak 4 | 3 4 Robot Miss Streak 2 | 1 2 Penetration Max . | . . Secondary Targets . | . . Shots Hit Robots 19 | 3 16 Core Hits 10 | . 10 Critical Hits . | . . Critical Kills . | . . Critical Parts Destroyed . | . . Melee Attacks . | . . Impact . | . . Slashing . | . . Piercing . | . . Sneak Attacks . | . . Combat Hostiles . | . . Follow-up Attacks . | . . Damage Inflicted 295 | 25 270 Guns 113 | 25 88 Cannons . | . . Explosions 182 | . 182 Melee . | . . Ramming . | . . Kinetic 102 | 25 77 Thermal 98 | . 98 Explosive 84 | . 84 Electromagnetic 11 | . 11 Impact . | . . Slashing . | . . Piercing . | . . Highest Corruption 2 | . 2 Average Corruption 2 | . 2 Corruption Purged . | . . Overload Shots . | . . Overflow Damage . | . . Projectiles . | . . Explosions . | . . Melee . | . . Knockbacks . | . . Impact . | . . Kinetic . | . . Secondary . | . . Self-Inflicted Damage 52 | . 52 Shots 2 | . 2 Rammed . | . . Targets Rammed . | . . Kicked . | . . Crushed . | . . Highest Temperature 112 | . 112 Average Temperature 27 | . 27 Received Heat Transfer 54 | . 54 Siege Activations . | . . Robots Corrupted . | . . Combat Hostiles . | . . Parts Fried . | . . Impact Corruptions . | . . Robots Melted . | . . Combat Hostiles . | . . Parts Melted . | . . Heat Transferred 150 | . 150 Parts Sabotaged . | . . Parts Stolen . | . . Parts Stripped . | . . Power Chain Reactions 1 | . 1 Missiles Intercepted . | . . Alert | -11 -10 ------- Run | Scr Mat Peak Influence 179 | . 179 Initial . | . . Average 43 | . 65 Maximum Alert Level . | . . Low Security (%) 100 | 100 100 Level 1 . | . . Level 2 . | . . Level 3 . | . . Level 4 . | . . Level 5 . | . . High Security . | . . Max Security . | . . Squads Dispatched 1 | . 1 Investigation 1 | . 1 Extermination . | . . Reinforcement . | . . Assault . | . . Garrison . | . . Intercept . | . . Construction Impeded . | . . Haulers Reinforced . | . . Stealth | -11 -10 --------- Run | Scr Mat Distress Signals . | . . Communications Jammed . | . . Distress Signals . | . . Times Spotted 7 | . 7 Peak Tracking Total 3 | . 3 Tactical Retreats . | . . Traps | -11 -10 ------- Run | Scr Mat Traps Triggered . | . . Indirectly . | . . Trap Hack Attempts . | . . Triggered . | . . Disarmed . | . . Reprogrammed . | . . Reused . | . . Traps Extracted . | . . Installed . | . . Triggered . | . . Machines | -11 -10 ---------- Run | Scr Mat Machines Disabled . | . . Max in Single Turn . | . . Machines Sabotaged . | . . Garrisons Compromised . | . . Overloaded Fab Kills . | . . Fab Network Shutdowns . | . . Hacking | -11 -10 --------- Run | Scr Mat Machines Accessed 1 | . 1 Terminals 1 | . 1 Fabricators . | . . Repair Stations . | . . Recycling Units . | . . Scanalyzers . | . . Garrison Access . | . . Total Hacks 4 | . 4 Successful 3 | . 3 Failed 1 | . 1 Catastrophic . | . . Database Lockouts . | . . Manual 1 | . 1 Terminals 4 | . 4 Fabricators . | . . Repair Stations . | . . Recycling Units . | . . Scanalyzers . | . . Garrison Access . | . . Terminal Hacks 3 | . 3 Prototype ID Bank 1 | . 1 Branch Access Points 1 | . 1 Terminal Index 1 | . 1 Fabricator Hacks . | . . Repair Station Hacks . | . . Recycling Unit Hacks . | . . Scanalyzer . | . . Garrison Access Hacks . | . . Unauthorized Hacks . | . . Terminals . | . . Fabricators . | . . Repair Stations . | . . Recycling Units . | . . Scanalyzers . | . . Garrison Access . | . . Data Cores Recovered . | . . Used . | . . Hacking Detections 1 | . 1 Full Trace Events 1 | . 1 Feedback Events . | . . Feedback Blocked . | . . Robot Schematics Acquired . | . . Robots Built . | . . Matter . | . . Time . | . . Total Robot Build Rating . | . . Part Schematics Acquired . | . . Parts Built . | . . Matter . | . . Time . | . . Total Part Build Rating . | . . Parts Repaired . | . . Time . | . . Parts Recycled . | . . Recycled Matter . | . . Retrieved Matter . | . . Retrieved Components . | . . Parts Scanalyzed . | . . Part Schematics Acquired . | . . Parts Damaged . | . . Bothacking | -11 -10 ------------ Run | Scr Mat Used RIF Installer . | . . Robots Hacked . | . . Non-combat . | . . Combat . | . . Robot Hacks Applied . | . . Relay Couplers Released . | . . Robots Rewired . | . . Allies Hacked . | . . Hacks Repelled . | . . Allies | -11 -10 -------- Run | Scr Mat Total Allies . | . . Largest Group . | . . Highest-Rated Group . | . . Highest-Rated Ally . | . . Total Orders . | . . Ally Attacks . | . . Total Damage . | . . Kills . | . . Allies Corrupted . | . . Allies Melted . | . . Intel | -11 -10 ------- Run | Scr Mat Robot Analysis Total . | . . Derelict Logs Recovered . | . . Drone Launches . | . . Drone Recoveries . | . . Exploration | -11 -10 ------------- Run | Scr Mat Turns Passed 172 | 59 113 Spaces Moved 146 | 42 104 Core 16 | 16 . Treads . | . . Legs 59 | 26 33 Wheels . | . . Hover . | . . Flight 71 | . 71 Fastest Speed 37 | 50 37 Average Speed 71 | 93 63 Slowest Speed 120 | 120 120 Overloaded Moves . | . . Propulsion Burnouts . | . . Robots Hopped . | . . Cave-ins Triggered 2 | . 2 Exploration Rate (%) 16 | 4 28 Regions Visited 1 Branch Regions . Pre-discovered Areas . | . . Known Exits Taken . | . . Unknown Exits Taken 1 | 1 . Scrap Searched . | . . Spaces Dug . | . . Terrain Destroyed 19 | . 19 Melee . | . . Projectile . | . . AOE 19 | . 19 Terrain Rammed . | . . Walls Destroyed . | . . Machines Disabled . | . . Actions | -11 -10 --------- Run | Scr Mat Total 191 | 59 132 Wait 5 | . 5 Move 145 | 41 104 Hop . | . . Pick Up 10 | 7 3 Fast Attach 1 | . 1 Attach 7 | 6 1 Detach . | . . Swap 2 | . 2 Drop 4 | 1 3 Fire 17 | 4 13 Melee . | . . Ram . | . . Kick . | . . Crush . | . . Escape Stasis . | . . Rewire . | . . Trap . | . . Miscellaneous . | . . Route ------- -11/Scrapyard -10/Materials (discovered 2 exits: Min x2) History --------- Turn | Location | Event 1 | -11/Scrapyard | Upgraded with Propulsion slot (x1) 1 | -11/Scrapyard | Upgraded with Utility slot (x1) 1 | -11/Scrapyard | Upgraded with Weapon slot (x2) 23 | -11/Scrapyard | Discovered new exit (range 15) 60 | -11/Scrapyard | Entered Materials 133 | -10/Materials | Identified exit to Mines 167 | -10/Materials | Crushed by falling debris 167 | -10/Materials | Core integrity fell below 50% 170 | -10/Materials | Crushed by falling debris 170 | -10/Materials | Core integrity fell below 20% 173 | -10/Materials | Destroyed by G-34 Mercenary with Small Laser Last Messages --------------- Found 2 branch access points: (37,36) Mines (66,35) Mines Map updated. 00133_ ALERT: Suspicious activity at Terminal M004. Dispatching Investigation squad. 00148_ S-10 Pest destroyed. 00151_ K-01 Serf collects debris. 00154_ U-05 Engineer lays Concrete. 00159_ U-05 Engineer builds a Wall. 00163_ U-05 Engineer lays Concrete. 00164_ U-05 Engineer builds a Wall. 00164_ G-34 Mercenary destroyed. 00167_ The unstable cave ceiling collapses. 00167_ Crushed by falling debris. 00170_ The unstable cave ceiling collapses. 00170_ Crushed by falling debris. 00170_ Flight Unit destroyed. 00170_ System corrupted by crushing effect (+2). 00170_ U-05 Engineer builds a Wall. Map ----- +----------------------------------------------------+ | ?????????????############ | | ????????????# # """ """ | | ????????????# """"""" [# """ """ | | ???????????????""""""" # """ ^""" | | ????????????? """"""" # | | ?????????????? """"""" + | | ????????????# """"""" # """ """ | | ????????????# + """ """? | | ???#################+#### """ """? | | ???# [ # ? | | ???# T # ? | | ???# + """ """ | | ???# """"" # """ "??? | | ???# """"""""" # """ "??? | | ???# """ """ # ?? | | ???############### / ?? | | ?????????????????# ?? | | ?????????????????# #?? | | ?????????????????# #?? | | ?????????????????# ?? | | ???????#######???# ?? | | ???????# ##### ?? | | ???????# T" # # ######??? | | ???????+ " ### //#???? | | ???????# =%==%* u //#???? | | ???????#! *@!# ## ==#???? | | ???????## a## ### ==#???? | | ????????# g%#####??##### !!#???? | | ????????# =#??????????? !!#???? | | ????????# +???????????? #####???? | | ????????# #???????????? #???????? | | ????????# #????????????? #???????? | | ????????# #??????????????????????? | | ????????# #??????????????????????? | | ????????# ???????????????????????? | | ????????# ???????????????????????? | | ????????# ???????????????????????? | | ????????# ???????????????????????? | | ????????# ???????????????????????? | | ????????# ???????????????????????? | | ????????? ???????????????????????? | | ???????????????????????????????????? | | ???????????????????????????????????? | | ???????????????????????????????????? | | ???????????????????????????????????? | | ???????????????????????????????????? | | ???????????????????????????????????? | | ???????????????????????????????????? | | ???????????????????????????????????? | | ???????????????????????????????????? | +----------------------------------------------------+ Best States ------------- Heat Dissipation 25 Energy Generation 10 Energy Capacity 125 Matter Stores 300 Matter Capacity 300 Sight Range 16 Terrain Scan Density 10 Evasion (%) 62 Offensive Hacking 5 Item Schematics ----------------- None Robot Schematics ------------------ None Fabricated ------------ Nothing Alien Tech Used ----------------- None Achievements -------------- None Challenges ------------ None RPGLIKE | -11 -10 --------- Run | Scr Mat Levels Raised . | . . XP Earned 3800 | 3000 800 XP Spent 2850 | 2850 . Upgrades 7 | 7 . Propulsion Slot 1 | 1 . Utility Slot 1 | 1 . Weapon Slot 2 | 2 . Mass Support 1 | 1 . Inventory Capacity 1 | 1 . Hack Attack % 1 | 1 . Protomatter Created 47 | . 47 Protomatter Decayed . | . . Game ------ Seed ArmoredPotentialFlamer Manual? 0 Play Time 00:09:11 Cumulative 16.2 hours Start 2021.10.30 @ 17:41:23 End 2021.10.30 @ 17:51:33 Sessions 1 Manual Loads 0 Difficulty Rogue Special Mode Winter2019/RPGLIKE Game No. 30 Rogue 30 Adventurer 0 Explorer 0 Win Type - Total 0 Types 0/0/0/0/0/0/0/0/0 Lore% 19 Gallery% 21 Achievement% 18 Wizard Run 0 Options --------- ASCII 0 Keyboard 0 Movement Numpad Keybinds 0 Fullscreen 1 Font 24/Smallcaps Map View 76x50 Tactical HUD 1 Map Filters NONE Filters NONE Steam 1 RUN: dcba4b0e-283c-4f1d-a29c-8a00473d276f